fUST/lending_fUST_20240721
["ID","MTS","AMOUNT","RATE_DAILY","PERIOD"]
[332792138,1721527841059,-511.49784745,0.00013698,2]
[332792139,1721527841068,-500.0,0.00013698,2]
[332792140,1721527841077,-500.0,0.00013698,2]
[332792141,1721527841087,-500.0,0.00013698,2]
[332792142,1721527841097,-500.0,0.00013698,2]
[332792143,1721527841106,-515.52,0.00013698,2]
[332792144,1721527841115,-500.0,0.00013698,2]
[332792145,1721527841125,-500.0,0.00013698,2]
[332792146,1721527841134,-500.0,0.00013698,2]
[332792147,1721527841144,-500.0,0.00013698,2]
[332792148,1721527841153,-500.0,0.00013698,2]
[332792149,1721527841163,-500.0,0.00013698,2]
[332792150,1721527841173,-624.728192,0.00013698,2]
[332792151,1721527841182,-509.85901008,0.00013698,2]
[332792152,1721527841192,-501.44774616,0.00013698,2]
[332792153,1721527841202,-2053.62,0.00013698,2]
[332792154,1721527841212,-500.0,0.00013698,2]
[332792155,1721527841221,-504.08045759,0.00013698,2]
[332792156,1721527841231,-199.22803893,0.00013698,2]
[332792157,1721527841240,-502.24128874,0.00013698,2]
[332792158,1721527841250,-500.0,0.00013698,2]
[332792159,1721527841260,-500.0,0.00013698,2]
[332792160,1721527841270,-755.94,0.00013698,2]
[332792161,1721527841279,-518.81684462,0.00013698,2]
[332792162,1721527841288,-648.61,0.00013698,2]
[332792163,1721527841297,-620.81,0.00013698,2]
[332792164,1721527841307,-500.0,0.00013698,2]
[332792165,1721527841317,-500.0,0.00013698,2]
[332792166,1721527841326,-500.0,0.00013698,2]
[332792167,1721527841336,-500.0,0.00013698,2]
[332792168,1721527841346,-500.0,0.00013698,2]
[332792169,1721527841357,-500.0,0.00013698,2]
[332792170,1721527841367,-500.0,0.00013698,2]
[332792171,1721527841377,-500.0,0.00013698,2]
[332792172,1721527841388,-500.0,0.00013698,2]
[332792173,1721527841399,-500.0,0.00013698,2]
[332792174,1721527841409,-1144.64,0.00013698,2]
[332792175,1721527841419,-500.0,0.00013698,2]
[332792176,1721527841432,-500.0,0.00013698,2]
[332792177,1721527841441,-500.0,0.00013698,2]
[332792178,1721527841450,-500.0,0.00013698,2]
[332792179,1721527841460,-500.0,0.00013698,2]
[332792180,1721527841469,-500.0,0.00013698,2]
[332792181,1721527841479,-500.0,0.00013698,2]
[332792182,1721527841488,-500.0,0.00013698,2]
[332792183,1721527841498,-500.0,0.00013698,2]
[332792184,1721527841508,-500.0,0.00013698,2]
[332792185,1721527841517,-500.0,0.00013698,2]
[332792186,1721527841528,-500.0,0.00013698,2]
[332792187,1721527841538,-500.0,0.00013698,2]
[332792188,1721527841548,-549.25474034,0.00013698,2]
[332792189,1721527841557,-504.62533408,0.00013698,2]
[332792190,1721527841569,-547.13910122,0.00013698,2]
[332792191,1721527841579,-739.54,0.00013698,2]
[332792192,1721527841590,-500.0,0.00013698,2]
[332792193,1721527841601,-642.03,0.00013698,2]
[332792194,1721527841612,-500.0,0.00013698,2]
[332792195,1721527841622,-500.0,0.00013698,2]
[332792196,1721527841637,-500.0,0.00013698,2]
[332792197,1721527841648,-500.0,0.00013698,2]
[332792198,1721527841658,-500.0,0.00013698,2]
[332792199,1721527841669,-570.28,0.00013698,2]
[332792200,1721527841680,-500.0,0.00013698,2]
[332792201,1721527841690,-2835.96,0.00013698,2]
[332792202,1721527841702,-500.0,0.00013698,2]
[332792203,1721527841712,-500.0,0.00013698,2]
[332792204,1721527841722,-527.46022515,0.00013698,2]
[332792205,1721527841731,-503.29603639,0.00013698,2]
[332792206,1721527841740,-789.11,0.00013698,2]
[332792207,1721527841749,-500.0,0.00013698,2]
[332792208,1721527841759,-829.8,0.00013698,2]
[332792209,1721527841768,-500.0,0.00013698,2]
[332792210,1721527841778,-500.0,0.00013698,2]
[332792211,1721527841788,-500.0,0.00013698,2]
[332792212,1721527841798,-500.0,0.00013698,2]
[332792213,1721527841808,-500.0,0.00013698,2]
[332792214,1721527841818,-500.0,0.00013698,2]
[332792215,1721527841828,-500.0,0.00013698,2]
[332792216,1721527841837,-500.0,0.00013698,2]
[332792217,1721527841846,-500.0,0.00013698,2]
[332792218,1721527841856,-500.0,0.00013698,2]
[332792219,1721527841866,-502.00479006,0.00013698,2]
[332792220,1721527841875,-500.0,0.00013698,2]
[332792221,1721527841885,-244.6032526,0.00013698,2]
[332792222,1721527841895,-500.0,0.00013698,2]
[332792223,1721527841904,-500.0,0.00013698,2]
[332792224,1721527841915,-500.0,0.00013698,2]
[332792225,1721527841924,-522.68,0.00013698,2]
[332792226,1721527841934,-666.25,0.00013698,2]
[332792227,1721527841945,-500.0,0.00013698,2]
[332792228,1721527841957,-500.0,0.00013698,2]
[332792229,1721527841967,-500.0,0.00013698,2]
[332792230,1721527841979,-500.0,0.00013698,2]
[332792231,1721527841989,-502.3804658,0.00013698,2]
[332792232,1721527841999,-500.0,0.00013698,2]
[332792233,1721527842010,-1105.58,0.00013698,2]
[332792234,1721527842020,-1752.79,0.00013698,2]
[332792235,1721527842031,-500.0,0.00013698,2]
[332792236,1721527842041,-1192.29,0.00013698,2]
[332792237,1721527842050,-500.0,0.00013698,2]
[332792238,1721527842061,-500.0,0.00013698,2]
[332792239,1721527842072,-500.0,0.00013698,2]
[332792240,1721527842083,-501.53767902,0.00013698,2]
[332792241,1721527842095,-563.71,0.00013698,2]
[332792242,1721527842105,-500.0,0.00013698,2]
[332792243,1721527842115,-613.33,0.00013698,2]
[332792244,1721527842126,-500.0,0.00013698,2]
[332792245,1721527842138,-500.0,0.00013698,2]
[332792246,1721527842149,-500.0,0.00013698,2]
[332792247,1721527842160,-500.0,0.00013698,2]
[332792248,1721527842169,-500.0,0.00013698,2]
[332792249,1721527842179,-1811.81,0.00013698,2]
[332792250,1721527842190,-500.0,0.00013698,2]
[332792251,1721527842201,-500.0,0.00013698,2]
[332792252,1721527842212,-500.0,0.00013698,2]
[332792253,1721527842220,-504.18897501,0.00013698,2]
[332792254,1721527842232,-500.0,0.00013698,2]
[332792255,1721527842242,-502.06907572,0.00013698,2]
[332792256,1721527842252,-500.0,0.00013698,2]
[332792257,1721527842260,-500.0,0.00013698,2]
[332792258,1721527842270,-500.0,0.00013698,2]
[332792259,1721527842279,-500.0,0.00013698,2]
[332792260,1721527842291,-500.0,0.00013698,2]
[332792261,1721527842300,-4176.59,0.00013698,2]
[332792262,1721527842309,-624.71,0.00013698,2]
[332792263,1721527842319,-577.51,0.00013698,2]
[332792264,1721527842330,-419.14849788,0.00013698,2]
[332792265,1721527842341,-532.16,0.00013698,2]
[332792266,1721527842350,-500.0,0.00013698,2]
[332792267,1721527842361,-789.05,0.00013698,2]
[332792268,1721527842371,-500.0,0.00013698,2]
[332792269,1721527842380,-500.0,0.00013698,2]
[332792270,1721527842391,-500.0,0.00013698,2]
[332792271,1721527842401,-1484.97,0.00013698,2]
[332792272,1721527842411,-500.0,0.00013698,2]
[332792273,1721527842423,-500.0,0.00013698,2]
[332792274,1721527842434,-500.0,0.00013698,2]
[332792275,1721527842443,-500.0,0.00013698,2]
[332792276,1721527842452,-646.41911865,0.00013698,2]
[332792277,1721527842462,-500.0,0.00013698,2]
[332792278,1721527842471,-500.0,0.00013698,2]
[332792279,1721527842480,-505.15585525,0.00013698,2]
[332792280,1721527842490,-500.0,0.00013698,2]
[332792281,1721527842501,-504.82506107,0.00013698,2]
[332792282,1721527842510,-500.0,0.00013698,2]
[332792283,1721527842520,-500.0,0.00013698,2]
[332792284,1721527842531,-546.87,0.00013698,2]
[332792285,1721527842541,-513.01851565,0.00013698,2]
[332792286,1721527842550,-500.0,0.00013698,2]
[332792287,1721527842559,-500.0,0.00013698,2]
[332792288,1721527842568,-500.0,0.00013698,2]
[332792289,1721527842577,-504.28120277,0.00013698,2]
[332792290,1721527842587,-1242.79,0.00013698,2]
[332792291,1721527842598,-500.0,0.00013698,2]
[332792292,1721527842611,-500.0,0.00013698,2]
[332792293,1721527842621,-500.0,0.00013698,2]
[332792294,1721527842635,-500.0,0.00013698,2]
[332792295,1721527842647,-500.0,0.00013698,2]
[332792296,1721527842656,-500.0,0.00013698,2]
[332792297,1721527842668,-500.0,0.00013698,2]
[332792298,1721527842678,-592.72339652,0.00013698,2]
[332792299,1721527842689,-632.95,0.00013698,2]
[332792300,1721527842700,-506.40127866,0.00013698,2]
[332792301,1721527842710,-500.0,0.00013698,2]
[332792302,1721527842722,-502.58812727,0.00013698,2]
[332792303,1721527842733,-500.0,0.00013698,2]
[332792304,1721527842744,-500.0,0.00013698,2]
[332792305,1721527842756,-500.0,0.00013698,2]
[332792306,1721527842768,-500.0,0.00013698,2]
[332792307,1721527842778,-500.0,0.00013698,2]
[332792308,1721527842789,-502.00450992,0.00013698,2]
[332792309,1721527842798,-500.0,0.00013698,2]
[332792310,1721527842808,-195.08991549,0.00013698,2]
[332792311,1721527842819,-500.0,0.00013698,2]
[332792312,1721527842829,-500.0,0.00013698,2]
[332792313,1721527842839,-500.0,0.00013698,2]
[332792314,1721527842849,-500.0,0.00013698,2]
[332792315,1721527842858,-603.13559602,0.00013698,2]
[332792316,1721527842867,-500.0,0.00013698,2]
[332792317,1721527842877,-500.0,0.00013698,2]
[332792318,1721527842887,-501.34951286,0.00013698,2]
[332792319,1721527842897,-500.0,0.00013698,2]
[332792320,1721527842907,-500.0,0.00013698,2]
[332792321,1721527842917,-500.0,0.00013698,2]
[332792322,1721527842926,-500.0,0.00013698,2]
[332792323,1721527842935,-273.53253815,0.00013698,2]
[332792324,1721527842944,-500.0,0.00013698,2]
[332792325,1721527842954,-500.0,0.00013698,2]
[332792326,1721527842963,-500.0,0.00013698,2]
[332792327,1721527842972,-500.0,0.00013698,2]
[332792328,1721527842982,-518.51648831,0.00013698,2]
[332792329,1721527842992,-500.0,0.00013698,2]
[332792330,1721527843001,-500.0,0.00013698,2]
[332792331,1721527843011,-500.0,0.00013698,2]
[332792332,1721527843021,-500.0,0.00013698,2]
[332792333,1721527843031,-500.0,0.00013698,2]
[332792334,1721527843040,-500.0,0.00013698,2]
[332792335,1721527843050,-500.0,0.00013698,2]
[332792336,1721527843060,-500.0,0.00013698,2]
[332792337,1721527843069,-500.0,0.00013698,2]
[332792338,1721527843078,-537.2978861,0.00013698,2]
[332792339,1721527843087,-500.0,0.00013698,2]
[332792340,1721527843097,-500.0,0.00013698,2]
[332792341,1721527843107,-550.42298283,0.00013698,2]
[332792342,1721527843116,-500.0,0.00013698,2]
[332792343,1721527843126,-150.0,0.00013698,2]
[332792344,1721527843135,-553.50097455,0.00013698,2]
[332792345,1721527843145,-500.0,0.00013698,2]
[332792346,1721527843154,-506.8348777,0.00013698,2]
[332792347,1721527843164,-500.0,0.00013698,2]
[332792348,1721527843175,-500.0,0.00013698,2]
[332792349,1721527843185,-500.0,0.00013698,2]
[332792350,1721527843196,-500.0,0.00013698,2]
[332792351,1721527843206,-500.0,0.00013698,2]
[332792352,1721527843217,-500.0,0.00013698,2]
[332792353,1721527843228,-500.0,0.00013698,2]
[332792354,1721527843239,-500.0,0.00013698,2]
[332792355,1721527843249,-500.0,0.00013698,2]
[332792356,1721527843260,-1963.1,0.00013698,2]
[332792357,1721527843269,-500.0,0.00013698,2]
[332792358,1721527843278,-277.30974389,0.00013698,2]
[332792359,1721527843288,-506.67046312,0.00013698,2]
[332792360,1721527843297,-500.0,0.00013698,2]
[332792361,1721527843306,-500.0,0.00013698,2]
[332792362,1721527843315,-505.04722869,0.00013698,2]
[332792363,1721527843324,-1896.71,0.00013698,2]
[332792364,1721527843334,-1012.95674876,0.00013698,2]
[332792365,1721527843344,-502.72088124,0.00013698,2]
[332792366,1721527843353,-501.05158394,0.00013698,2]
[332792367,1721527843363,-500.0,0.00013698,2]
[332792368,1721527843372,-500.0,0.00013698,2]
[332792369,1721527843382,-500.0,0.00013698,2]
[332792370,1721527843392,-500.0,0.00013698,2]
[332792371,1721527843401,-843.23,0.00013698,2]
[332792373,1721527843410,-850.04,0.00013698,2]
[332792375,1721527843419,-500.0,0.00013698,2]
[332792377,1721527843429,-500.0,0.00013698,2]
[332792378,1721527843438,-500.0,0.00013698,2]
[332792380,1721527843448,-500.0,0.00013698,2]
[332792383,1721527843457,-500.0,0.00013698,2]
[332792385,1721527843467,-502.47574919,0.00013698,2]
[332792387,1721527843476,-500.0,0.00013698,2]
[332792388,1721527843485,-2622.39,0.00013698,2]
[332792389,1721527843494,-511.67133738,0.00013698,2]
[332792390,1721527843504,-500.0,0.00013698,2]
[332792391,1721527843516,-617.37745255,0.00013698,2]
[332792392,1721527843526,-503.40087268,0.00013698,2]
[332792393,1721527843535,-502.2429734,0.00013698,2]
[332792394,1721527843545,-500.0,0.00013698,2]
[332792395,1721527843554,-500.0,0.00013698,2]
[332792396,1721527843564,-500.0,0.00013698,2]
[332792397,1721527843574,-500.0,0.00013698,2]
[332792398,1721527843584,-1247.74,0.00013698,2]
[332792399,1721527843593,-500.0,0.00013698,2]
[332792400,1721527843602,-500.0,0.00013698,2]
[332792401,1721527843612,-1693.12,0.00013698,2]
[332792403,1721527843621,-500.0,0.00013698,2]
[332792405,1721527843634,-500.0,0.00013698,2]
[332792407,1721527843643,-500.0,0.00013698,2]
[332792410,1721527843652,-503.5797547,0.00013698,2]
[332792413,1721527843662,-500.0,0.00013698,2]
[332792415,1721527843672,-500.0,0.00013698,2]
[332792417,1721527843682,-1625.34,0.00013698,2]
[332792418,1721527843691,-500.0,0.00013698,2]
[332792419,1721527843700,-1551.28,0.00013698,2]
[332792420,1721527843712,-778.74,0.00013698,2]
[332792421,1721527843722,-500.0,0.00013698,2]
[332792422,1721527843733,-553.23,0.00013698,2]
[332792423,1721527843743,-488.60007628,0.00013698,2]
[332792424,1721527843753,-485.26211001,0.00013698,2]
[332792425,1721527843763,-502.54817134,0.00013698,2]
[332792426,1721527843773,-500.0,0.00013698,2]
[332792427,1721527843782,-500.0,0.00013698,2]
[332792428,1721527843792,-668.39,0.00013698,2]
[332792429,1721527843802,-500.0,0.00013698,2]
[332792430,1721527843811,-500.0,0.00013698,2]
[332792431,1721527843821,-500.0,0.00013698,2]
[332792432,1721527843830,-543.78739897,0.00013698,2]
[332792433,1721527843840,-151.0,0.00013698,2]
[332792434,1721527843849,-500.0,0.00013698,2]
[332792435,1721527843858,-502.51659426,0.00013698,2]
[332792436,1721527843868,-837.08,0.00013698,2]
[332792437,1721527843879,-506.405325,0.00013698,2]
[332792438,1721527843889,-500.0,0.00013698,2]
[332792439,1721527843900,-635.20312292,0.00013698,2]
[332792440,1721527843911,-500.0,0.00013698,2]
[332792441,1721527843920,-500.0,0.00013698,2]
[332792442,1721527843930,-500.0,0.00013698,2]
[332792443,1721527843941,-500.0,0.00013698,2]
[332792444,1721527843953,-500.0,0.00013698,2]
[332792445,1721527843964,-526.16960824,0.00013698,2]
[332792446,1721527843974,-500.0,0.00013698,2]
[332792447,1721527843984,-500.9166556,0.00013698,2]
[332792448,1721527843995,-500.0,0.00013698,2]
[332792449,1721527844006,-500.7971441,0.00013698,2]
[332792450,1721527844016,-500.0,0.00013698,2]
[332792451,1721527844026,-500.0,0.00013698,2]
[332792452,1721527844035,-500.0,0.00013698,2]
[332792453,1721527844045,-500.0,0.00013698,2]
[332792454,1721527844054,-500.0,0.00013698,2]
[332792455,1721527844064,-502.57095392,0.00013698,2]
[332792456,1721527844073,-259.81166719,0.00013698,2]
[332792457,1721527844082,-542.96,0.00013698,2]
[332792458,1721527844091,-1712.64,0.00013698,2]
[332792459,1721527844100,-500.0,0.00013698,2]
[332792460,1721527844109,-500.0,0.00013698,2]
[332792461,1721527844119,-505.92769148,0.00013698,2]
[332792462,1721527844128,-257.77649434,0.00013698,2]
[332792463,1721527844137,-1416.48,0.00013698,2]
[332792464,1721527844147,-627.86,0.00013698,2]
[332792465,1721527844156,-500.0,0.00013698,2]
[332792466,1721527844165,-3309.92,0.00013698,2]
[332792467,1721527844174,-502.87563975,0.00013698,2]
[332792468,1721527844184,-500.0,0.00013698,2]
[332792469,1721527844193,-1811.1,0.00013698,2]
[332792470,1721527844202,-502.51550918,0.00013698,2]
[332792471,1721527844211,-500.0,0.00013698,2]
[332792472,1721527844370,-1835.35,0.00013698,2]
[332792473,1721527844380,-500.97080716,0.00013698,2]
[332792474,1721527844389,-554.52,0.00013698,2]
[332792475,1721527844398,-2458.78,0.00013698,2]
[332792476,1721527844407,-500.0,0.00013698,2]
[332792477,1721527844416,-1126.68,0.00013698,2]
[332792478,1721527844426,-500.0,0.00013698,2]
[332792479,1721527844435,-500.0,0.00013698,2]
[332792480,1721527844444,-1055.37,0.00013698,2]
[332792481,1721527844453,-1193.25,0.00013698,2]
[332792482,1721527844462,-483.36756744,0.00013698,2]
[332792483,1721527844472,-502.58801939,0.00013698,2]
[332792484,1721527844482,-2168.53,0.00013698,2]
[332792485,1721527844491,-2287.36,0.00013698,2]
[332792486,1721527844500,-500.0,0.00013698,2]
[332792487,1721527844510,-510.91,0.00013698,2]
[332792488,1721527844520,-500.0,0.00013698,2]
[332792489,1721527844531,-504.84,0.00013698,2]
[332792490,1721527844541,-500.0,0.00013698,2]
[332792493,1721527844550,-672.49,0.00013698,2]
[332792496,1721527844560,-1723.47,0.00013698,2]
[332792499,1721527844569,-4272.47,0.00013698,2]
[332792501,1721527844578,-553.17107908,0.00013698,2]
[332792502,1721527844587,-5362.01,0.00013698,2]
[332792503,1721527844597,-500.0,0.00013698,2]
[332792504,1721527844606,-742.69,0.00013698,2]
[332792505,1721527844615,-644.88,0.00013698,2]
[332792506,1721527844626,-500.0,0.00013698,2]
[332792507,1721527844638,-1165.46,0.00013698,2]
[332792508,1721527844647,-523.53,0.00013698,2]
[332792509,1721527844656,-500.0,0.00013698,2]
[332792510,1721527844667,-1099.63,0.00013698,2]
[332792511,1721527844676,-599.05,0.00013698,2]
[332792512,1721527844686,-500.0,0.00013698,2]
[332792513,1721527844695,-500.0,0.00013698,2]
[332792514,1721527844707,-500.0,0.00013698,2]
[332792515,1721527844716,-572.16,0.00013698,2]
[332792516,1721527844726,-3984.88,0.00013698,2]
[332792517,1721527844736,-500.0,0.00013698,2]
[332792518,1721527844746,-271.74760283,0.00013698,2]
[332792519,1721527844755,-521.70534703,0.00013698,2]
[332792520,1721527844765,-500.0,0.00013698,2]
[332792521,1721527844774,-2017.41,0.00013698,2]
[332792522,1721527844784,-501.5162643,0.00013698,2]
[332792523,1721527844794,-500.0,0.00013698,2]
[332792524,1721527844803,-500.0,0.00013698,2]
[332792525,1721527844813,-500.0,0.00013698,2]
[332792526,1721527844822,-500.0,0.00013698,2]
[332792527,1721527844832,-500.0,0.00013698,2]
[332792528,1721527844841,-171.40599026,0.00013698,2]
[332792529,1721527844850,-500.0,0.00013698,2]
[332792530,1721527844859,-500.0,0.00013698,2]
[332792531,1721527844869,-548.99,0.00013698,2]
[332792532,1721527844879,-500.0,0.00013698,2]
[332792533,1721527844889,-500.0,0.00013698,2]
[332792534,1721527844898,-500.0,0.00013698,2]
[332792535,1721527844908,-500.0,0.00013698,2]
[332792536,1721527844918,-473.39537571,0.00013698,2]
[332792537,1721527844927,-2111.08,0.00013698,2]
[332792538,1721527844937,-609.05,0.00013698,2]
[332792539,1721527844946,-500.0,0.00013698,2]
[332792540,1721527844955,-501.3147103,0.00013698,2]
[332792541,1721527844965,-503.35722576,0.00013698,2]
[332792542,1721527844974,-657.8,0.00013698,2]
[332792543,1721527844984,-501.1334757,0.00013698,2]
[332792544,1721527844994,-500.0,0.00013698,2]
[332792545,1721527845003,-500.0,0.00013698,2]
[332792546,1721527845013,-500.0,0.00013698,2]
[332792547,1721527845022,-648.05,0.00013698,2]
[332792548,1721527845032,-500.0,0.00013698,2]
[332792549,1721527845041,-2257.74,0.00013698,2]
[332792550,1721527845050,-500.0,0.00013698,2]
[332792551,1721527845059,-534.65,0.00013698,2]
[332792552,1721527845069,-500.0,0.00013698,2]
[332792553,1721527845078,-513.23170006,0.00013698,2]
[332792554,1721527845087,-500.0,0.00013698,2]
[332792555,1721527845097,-500.0,0.00013698,2]
[332792556,1721527845106,-3258.25,0.00013698,2]
[332792557,1721527845115,-500.0,0.00013698,2]
[332792558,1721527845124,-502.90682651,0.00013698,2]
[332792559,1721527845134,-344.22504912,0.00013698,2]
[332792560,1721527845143,-502.40678066,0.00013698,2]
[332792561,1721527845152,-500.0,0.00013698,2]
[332792562,1721527845162,-500.0,0.00013698,2]
[332792563,1721527845172,-794.69,0.00013698,2]
[332792564,1721527845181,-500.0,0.00013698,2]
[332792565,1721527845190,-500.0,0.00013698,2]
[332792566,1721527845200,-500.0,0.00013698,2]
[332792567,1721527845209,-500.0,0.00013698,2]
[332792568,1721527845219,-500.0,0.00013698,2]
[332792569,1721527845228,-501.5293362,0.00013698,2]
[332792570,1721527845239,-500.0,0.00013698,2]
[332792571,1721527845248,-500.0,0.00013698,2]
[332792572,1721527845257,-500.0,0.00013698,2]
[332792573,1721527845267,-500.81339104,0.00013698,2]
[332792574,1721527845276,-18040.68,0.00013698,2]
[332792575,1721527845285,-500.0,0.00013698,2]
[332792576,1721527845294,-500.0,0.00013698,2]
[332792577,1721527845303,-500.0,0.00013698,2]
[332792578,1721527845313,-503.64244037,0.00013698,2]
[332792579,1721527845322,-1704.77,0.00013698,2]
[332792580,1721527845331,-781.14,0.00013698,2]
[332792581,1721527845341,-1532.59,0.00013698,2]
[332792582,1721527845350,-500.0,0.00013698,2]
[332792583,1721527845359,-8627.35,0.00013698,2]
[332792584,1721527845368,-1071.5,0.00013698,2]
[332792585,1721527845378,-506.96922315,0.00013698,2]
[332792586,1721527845387,-510.85,0.00013698,2]
[332792587,1721527845397,-1588.1,0.00013698,2]
[332792588,1721527845406,-503.22469802,0.00013698,2]
[332792589,1721527845415,-500.0,0.00013698,2]
[332792590,1721527845426,-500.0,0.00013698,2]
[332792591,1721527845436,-500.0,0.00013698,2]
[332792592,1721527845446,-616.91,0.00013698,2]
[332792593,1721527845455,-500.0,0.00013698,2]
[332792594,1721527845464,-500.0,0.00013698,2]
[332792595,1721527845473,-500.0,0.00013698,2]
[332792596,1721527845483,-500.0,0.00013698,2]
[332792597,1721527845492,-500.0,0.00013698,2]
[332792598,1721527845502,-500.0,0.00013698,2]
[332792599,1721527845512,-500.0,0.00013698,2]
[332792600,1721527845521,-500.0,0.00013698,2]
[332792601,1721527845531,-500.0,0.00013698,2]
[332792602,1721527845541,-2599.9,0.00013698,2]
[332792603,1721527845551,-500.0,0.00013698,2]
[332792604,1721527845560,-500.0,0.00013698,2]
[332792605,1721527845569,-500.0,0.00013698,2]
[332792606,1721527845578,-500.0,0.00013698,2]
[332792607,1721527845587,-500.0,0.00013698,2]
[332792608,1721527845596,-500.0,0.00013698,2]
[332792609,1721527845605,-500.0,0.00013698,2]
[332792610,1721527845615,-500.0,0.00013698,2]
[332792611,1721527845626,-500.0,0.00013698,2]
[332792612,1721527845637,-698.5,0.00013698,2]
[332792613,1721527845646,-949.92,0.00013698,2]
[332792614,1721527845655,-500.42433486,0.00013698,2]
[332792615,1721527845665,-500.0,0.00013698,2]
[332792616,1721527845674,-2145.02,0.00013698,2]
[332792617,1721527845684,-500.0,0.00013698,2]
[332792618,1721527845694,-3476.62,0.00013698,2]
[332792619,1721527845705,-821.56,0.00013698,2]
[332792620,1721527845715,-500.0,0.00013698,2]
[332792621,1721527845724,-500.0,0.00013698,2]
[332792622,1721527845734,-3141.66,0.00013698,2]
[332792623,1721527845744,-500.0,0.00013698,2]
[332792624,1721527845753,-500.0,0.00013698,2]
[332792625,1721527845763,-501.49899713,0.00013698,2]
[332792626,1721527845772,-986.07,0.00013698,2]
[332792627,1721527845782,-500.0,0.00013698,2]
[332792628,1721527845792,-480.92618224,0.00013698,2]
[332792629,1721527845801,-509.6950994,0.00013698,2]
[332792630,1721527845811,-602.53,0.00013698,2]
[332792631,1721527845820,-5262.32,0.00013698,2]
[332792632,1721527845830,-500.0,0.00013698,2]
[332792633,1721527845839,-3820.82,0.00013698,2]
[332792634,1721527845849,-500.0,0.00013698,2]
[332792635,1721527845858,-667.95,0.00013698,2]
[332792636,1721527845868,-500.0,0.00013698,2]
[332792637,1721527845878,-508.05205072,0.00013698,2]
[332792638,1721527845888,-4979.92,0.00013698,2]
[332792639,1721527845897,-500.0,0.00013698,2]
[332792640,1721527845908,-2000.0,0.00013698,2]
[332792641,1721527845918,-500.0,0.00013698,2]
[332792642,1721527845927,-500.0,0.00013698,2]
[332792643,1721527845937,-1860.76,0.00013698,2]
[332792644,1721527845947,-500.0,0.00013698,2]
[332792645,1721527845956,-500.0,0.00013698,2]
[332792646,1721527845965,-666.21,0.00013698,2]
[332792647,1721527845975,-500.0,0.00013698,2]
[332792648,1721527845984,-884.3,0.00013698,2]
[332792649,1721527845993,-500.0,0.00013698,2]
[332792650,1721527846003,-8206.99,0.00013698,2]
[332792651,1721527846012,-500.0,0.00013698,2]
[332792652,1721527846021,-500.0,0.00013698,2]
[332792653,1721527846030,-500.0,0.00013698,2]
[332792654,1721527846040,-500.0,0.00013698,2]
[332792655,1721527846049,-500.0,0.00013698,2]
[332792656,1721527846058,-500.0,0.00013698,2]
[332792657,1721527846068,-500.0,0.00013698,2]
[332792658,1721527846077,-830.65,0.00013698,2]
[332792659,1721527846086,-500.0,0.00013698,2]
[332792660,1721527846095,-746.48,0.00013698,2]
[332792661,1721527846105,-500.0,0.00013698,2]